bitfinex-derivatives/quotes_ETHF0:USTF0_20241013
["timestamp","ask_amount","ask_price","bid_price","bid_amount"]
[1728822824285,0.82551,2467.6,2467.4,0.82013]
[1728822825393,0.4202,2467.6,2467.4,0.82013]
[1728822825793,0.7888,2467.7,2467.5,0.40532]
[1728822826790,0.7888,2467.7,2467.4,0.4148]
[1728822826996,0.7888,2467.7,2467.4,0.82013]
[1728822827892,0.79978,2467.8,2467.6,0.4053]
[1728822828292,0.79978,2467.8,2467.5,0.4136]
[1728822828788,0.3945,2467.8,2467.5,0.4136]
[1728822829092,0.4053,2467.7,2467.5,0.4136]
[1728822829295,0.4053,2467.7,2467.5,0.81891]
[1728822830195,0.4053,2467.7,2467.5,0.4136]
[1728822830396,0.3945,2467.8,2467.5,0.4136]
[1728822830595,0.79979,2467.8,2467.5,0.4136]
[1728822830791,0.79979,2467.8,2467.6,0.4053]
[1728822831297,0.79979,2467.8,2467.7,0.4199]
[1728822833796,0.79979,2467.8,2467.7,0.82519]
[1728822834698,0.3945,2467.8,2467.7,0.82519]
[1728822840400,0.79978,2467.8,2467.7,0.4199]
[1728822840800,0.3945,2467.8,2467.5,1.46720114]
[1728822841002,0.40531,2467.7,2467.5,0.3884]
[1728822841202,0.3945,2467.8,2467.5,0.3884]
[1728822841508,0.40531,2467.6,2467.5,0.3884]
[1728822842904,0.4053,2467.7,2467.5,0.79372]
[1728822843603,0.79978,2467.8,2467.6,0.4053]
[1728822844200,0.3945,2467.8,2467.5,1.84731114]
[1728822844406,0.79979,2467.8,2467.5,1.84731114]
[1728822844609,0.4053,2467.7,2467.5,1.84731114]
[1728822844808,0.40531,2467.6,2467.5,1.44200114]
[1728822846113,0.40531,2467.6,2467.5,2.56484874]
[1728822846500,0.40531,2467.6,2467.5,1.05360114]
[1728822846699,1.40771,2467.8,2467.4,1.05360114]
[1728822846700,0.40532,2467.5,2467.4,1.05360114]
[1728822846903,0.8211,2467.5,2467.3,4.67450114]
[1728822847104,0.80224,2467.4,2467.3,4.67450114]
[1728822847306,0.80224,2467.4,2467.3,5.79809188]
[1728822847697,0.3969,2467.4,2467.3,6.20345188]
[1728822847904,0.3969,2467.4,2467.3,5.27658033]
[1728822848399,0.3969,2467.4,2467.3,5.27658026]
[1728822848704,0.3969,2467.4,2467.3,6.86110602]
[1728822848899,0.3969,2467.4,2467.3,6.3316227]
[1728822849106,0.3969,2467.4,2467.3,5.27658026]
[1728822849401,0.80224,2467.4,2467.3,4.87122026]
[1728822849716,0.80224,2467.4,2467.3,6.45574602]
[1728822849905,0.3969,2467.4,2467.3,6.45574602]
[1728822850205,0.3969,2467.4,2467.3,6.86110602]
[1728822850711,0.3969,2467.4,2467.3,7.05118722]
[1728822850911,0.3969,2467.4,2467.3,6.86110602]
[1728822851410,0.3969,2467.4,2467.3,7.05119564]
[1728822851605,0.3969,2467.4,2467.3,3.84409315]
[1728822852223,0.3969,2467.4,2467.3,4.34805194]
[1728822853508,0.3969,2467.4,2467.3,3.94269194]
[1728822853811,0.3969,2467.4,2467.3,3.43845515]
[1728822853812,0.80224,2467.4,2467.3,3.43845515]
[1728822854714,0.3969,2467.4,2467.3,3.43845515]
[1728822855502,0.3969,2467.4,2467.3,3.94301451]
[1728822855705,0.3969,2467.4,2467.3,4.34837462]
[1728822856502,0.3969,2467.4,2467.3,2.76412686]
[1728822857312,0.3969,2467.4,2467.3,2.96689396]
[1728822857617,0.3969,2467.4,2467.3,5.07959498]
[1728822859117,0.3969,2467.4,2467.3,5.38426839]
[1728822859318,0.3969,2467.4,2467.3,5.3844161]
[1728822859616,0.3969,2467.4,2467.3,7.63686682]
[1728822860221,0.3969,2467.4,2467.3,5.3844161]
[1728822860718,0.3969,2467.4,2467.3,7.63708094]
[1728822861212,0.3969,2467.4,2467.3,7.63877494]
[1728822861607,0.3969,2467.4,2467.3,7.23341494]
[1728822861910,2.39584068,2467.4,2467.3,3.83875097]
[1728822862108,0.40536,2467.3,2467.2,1.05765762]
[1728822862301,0.40536,2467.3,2467.1,1.58631523]
[1728822862302,0.40537,2467.2,2467.1,1.05765762]
[1728822862513,0.40539,2467.1,2467.0,7.32935915]
[1728822862708,3.21034524,2467.1,2467.0,1.18440999]
[1728822862913,3.21034524,2467.1,2467.0,1.05765762]
[1728822863219,3.21034524,2467.1,2467.0,1.18441021]
[1728822863220,2.67834802,2467.1,2467.0,1.18441021]
[1728822863418,2.67834802,2467.1,2467.0,1.05765762]
[1728822864318,0.40541,2467.0,2466.9,4.26545762]
[1728822864517,2.67835802,2467.1,2466.9,5.79665283]
[1728822864717,2.67835802,2467.1,2466.9,4.67086762]
[1728822865219,1.6155,2467.1,2466.9,4.67086762]
[1728822865607,1.6155,2467.1,2467.0,1.05765762]
[1728822866319,1.6155,2467.1,2466.9,5.09336762]
[1728822866515,0.40541,2467.0,2466.9,5.09336762]
[1728822868118,0.40541,2467.0,2466.9,1.88556762]
[1728822868415,0.40541,2467.0,2466.9,0.4225]
[1728822868918,0.40544,2466.8,2466.7,1.05765762]
[1728822869316,0.40546,2466.7,2466.6,1.05765762]
[1728822869516,0.40547,2466.6,2466.5,1.05765762]
[1728822869716,1.2283,2466.7,2466.4,1.46635762]
[1728822869717,0.40549,2466.5,2466.4,1.46635762]
[1728822870327,0.40549,2466.5,2466.4,0.4087]
[1728822871925,0.40552,2466.3,2466.2,1.05765762]
[1728822872220,0.40552,2466.3,2466.2,0.4205]
[1728822872615,0.802,2466.3,2466.2,0.4205]
[1728822873414,0.802,2466.3,2466.0,3.2078]
[1728822873415,0.40555,2466.1,2466.0,3.2078]
[1728822873616,1.81583,2466.3,2466.0,3.2078]
[1728822873617,0.802,2466.3,2466.0,3.2078]
[1728822873820,0.40555,2466.2,2466.0,3.2078]
[1728822876117,0.40555,2466.2,2466.0,3.61337]
[1728822876321,0.40555,2466.2,2466.0,3.2078]
[1728822876814,0.40555,2466.2,2466.0,3.5954]
[1728822877015,0.40555,2466.2,2466.0,3.9917]
[1728822877216,0.3903,2466.4,2466.2,0.40554]
[1728822877425,0.3903,2466.4,2466.3,0.4069]
[1728822877612,0.79581,2466.4,2466.3,0.4069]
[1728822882722,0.3903,2466.4,2466.0,3.9917]
[1728822882927,0.40553,2466.3,2466.1,0.40554]
[1728822883230,0.40553,2466.3,2466.1,0.82014]
[1728822883730,0.40553,2466.3,2466.1,0.4146]
[1728822884423,0.40552,2466.3,2466.1,0.4146]
[1728822886032,0.79581,2466.4,2466.1,0.82014]
[1728822886426,0.79581,2466.4,2466.2,0.40554]
[1728822887823,0.79581,2466.4,2466.1,0.82014]
[1728822888018,0.3903,2466.4,2466.1,0.82014]
[1728822888232,0.40553,2466.3,2466.1,0.4146]
[1728822888830,0.40553,2466.3,2466.1,0.82015]
[1728822889839,0.40553,2466.3,2466.1,0.4146]
[1728822892020,0.3903,2466.4,2466.1,0.4146]
[1728822892319,0.79582,2466.4,2466.1,0.82014]
[1728822892521,0.40554,2466.2,2466.1,0.4146]
[1728822893035,0.40553,2466.3,2466.1,0.4146]
[1728822893237,0.3952,2466.2,2466.1,0.4146]
[1728822893734,0.80074,2466.2,2466.1,0.4146]
[1728822894033,0.3952,2466.2,2466.1,0.4146]
[1728822898359,0.8141,2466.2,2466.1,0.4146]
[1728822898552,0.40555,2466.1,2466.0,3.2078]
[1728822898751,1.01378,2466.4,2466.0,3.2078]
[1728822898952,0.40554,2466.2,2466.1,0.3991]
[1728822902657,0.40555,2466.1,2466.0,3.2078]
[1728822904954,0.4056,2465.8,2465.7,0.3923]
[1728822906457,1.19439,2465.9,2465.7,0.79792]
[1728822906660,0.3918,2465.9,2465.7,0.3923]
[1728822906853,0.3823,2466.0,2465.7,0.3923]
[1728822907056,0.3823,2466.0,2465.8,0.4056]
[1728822907860,0.3823,2466.0,2465.7,0.3923]
[1728822907861,0.7845,2466.2,2465.9,0.40559]
[1728822908057,1.58275,2466.2,2466.0,0.3854]
[1728822908761,0.40555,2466.1,2466.0,0.79096]
[1728822909062,1.58274,2466.2,2466.0,0.79096]
[1728822909364,1.58274,2466.2,2466.0,0.3854]
[1728822909565,1.58274,2466.2,2466.1,0.40555]
[1728822912562,1.1772,2466.2,2466.0,0.3854]
[1728822912769,0.40555,2466.1,2466.0,0.79096]
[1728822914165,0.40555,2466.1,2466.0,1.44305762]
[1728822914369,5.11805802,2466.1,2465.8,1.05765762]
[1728822914558,1.06260162,2465.9,2465.7,0.40562]
[1728822914756,1.06260162,2465.9,2465.6,1.48065762]
[1728822914757,0.40562,2465.7,2465.6,1.88627762]
[1728822915158,0.40562,2465.7,2465.6,2.60710392]
[1728822915358,0.40562,2465.7,2465.6,1.48065762]
[1728822915862,0.40562,2465.7,2465.5,4.79411523]
[1728822915863,0.40564,2465.6,2465.5,4.26545762]
[1728822916161,0.40565,2465.5,2465.4,1.05765762]
[1728822916353,0.40567,2465.4,2465.3,1.05765762]
[1728822916560,0.40569,2465.3,2465.2,3.2078]
[1728822916761,0.8436,2465.3,2465.1,1.45425762]
[1728822916959,0.4057,2465.2,2465.1,1.45425762]
[1728822917155,0.40572,2465.1,2464.9,1.05765762]
[1728822917366,0.40575,2464.9,2464.8,1.05765762]
[1728822917668,0.40578,2464.7,2464.6,0.3966]
[1728822918163,0.4107,2464.9,2464.6,0.3966]
[1728822918460,0.4107,2464.9,2464.6,4.01019]
[1728822918461,0.81646,2464.9,2464.6,4.01019]
[1728822919061,0.4107,2464.9,2464.6,0.80239]
[1728822919257,0.40578,2464.7,2464.6,0.3966]
[1728822919562,0.4001,2464.8,2464.6,0.3966]
[1728822919868,0.4001,2464.8,2464.4,1.05765762]
[1728822920168,0.40581,2464.6,2464.3,3.2078]
[1728822920363,0.40581,2464.6,2464.3,3.61365]
[1728822920557,0.40581,2464.6,2464.3,4.01735]
[1728822920758,0.8256,2464.7,2464.3,4.01735]
[1728822921767,0.8256,2464.7,2464.3,0.80955]
[1728822921955,0.4198,2464.7,2464.4,0.40583]
[1728822922163,0.40583,2464.4,2464.3,0.4037]
[1728822922561,0.405,2464.5,2464.2,3.2078]
[1728822922768,0.4127,2464.3,2464.2,3.2078]
[1728822923363,0.405,2464.5,2464.2,3.2078]
[1728822923560,3.2078,2465.0,2464.2,3.2078]
[1728822923766,0.40578,2464.8,2464.4,0.40582]
[1728822924269,0.40578,2464.8,2464.5,0.79432]
[1728822924468,0.4127,2464.9,2464.6,0.40579]
[1728822924774,0.4127,2464.9,2464.5,0.3885]
[1728822924775,0.4127,2464.9,2464.7,0.40578]
[1728822925763,0.4127,2464.9,2464.5,0.3885]
[1728822925963,0.4127,2464.9,2464.8,0.40577]
[1728822926570,0.405,2465.0,2464.9,0.40575]
[1728822927475,0.81074,2465.0,2464.8,0.40576]
[1728822927667,0.405,2465.0,2464.6,0.3841]
[1728822927875,0.40578,2464.8,2464.6,0.78989]
[1728822928173,0.40578,2464.8,2464.6,0.40579]
[1728822928475,0.40578,2464.8,2464.5,4.00211]
[1728822928771,0.4055,2464.7,2464.5,3.5963]
[1728822928982,0.4055,2464.7,2464.5,4.00211]
[1728822930879,0.81129,2464.7,2464.5,3.5963]
[1728822931063,0.4058,2464.6,2464.5,3.2078]
[1728822931267,0.8124,2464.6,2464.5,3.2078]
[1728822931873,1.2215,2464.6,2464.5,3.2078]
[1728822932073,1.2215,2464.6,2464.3,0.3863]
[1728822932074,0.40582,2464.5,2464.3,0.3863]
[1728822933177,1.22152,2464.6,2464.3,0.3863]
[1728822933374,1.22152,2464.6,2464.3,0.79215]
[1728822933576,0.40582,2464.5,2464.3,0.79215]
[1728822934176,0.40582,2464.5,2464.3,0.3863]
[1728822935274,0.8157,2464.6,2464.3,0.3863]
[1728822935475,0.40582,2464.5,2464.3,0.3863]
[1728822936978,0.40582,2464.5,2464.3,0.79215]
[1728822937469,0.8157,2464.6,2464.3,0.3863]
[1728822937672,0.40582,2464.5,2464.3,0.3863]
[1728822938073,0.40583,2464.5,2464.3,0.3863]
[1728822939279,0.40583,2464.4,2464.3,0.3863]
[1728822940675,0.40583,2464.4,2464.1,0.40588]
[1728822941177,0.8157,2464.6,2464.0,0.389]
[1728822941477,0.40588,2464.1,2464.0,0.389]
[1728822942086,0.40589,2464.1,2463.8,3.61372]
[1728822942390,0.8105,2464.0,2463.8,3.5968]
[1728822942586,3.2078,2464.5,2463.8,3.5968]
[1728822942783,0.8171,2464.4,2464.0,0.40588]
[1728822945486,1.22294,2464.4,2464.0,0.40588]
[1728822946481,0.8171,2464.4,2464.1,0.40588]
[1728822947485,0.8171,2464.4,2464.2,0.40587]
[1728822947687,0.8171,2464.4,2463.8,0.389]
[1728822947688,0.8171,2464.4,2463.9,0.3814]
[1728822947880,0.8171,2464.4,2463.9,0.40592]
[1728822948082,0.8171,2464.4,2464.1,0.40587]
[1728822948284,0.8171,2464.4,2463.8,0.389]
[1728822948475,1.22294,2464.4,2464.1,0.40588]
[1728822948988,1.22294,2464.4,2464.2,0.40587]
[1728822949285,1.22294,2464.4,2463.8,0.389]
[1728822949486,1.22294,2464.4,2464.1,0.40587]
[1728822949985,0.8171,2464.4,2463.8,0.389]
[1728822950190,1.22294,2464.4,2463.9,0.40592]
[1728822950488,1.22294,2464.4,2463.8,1.40382]
[1728822950689,1.22294,2464.4,2464.2,0.40586]
[1728822950884,0.8171,2464.4,2464.3,0.40585]
[1728822951284,4.8747,2464.4,2464.3,0.40585]
[1728822952078,0.8171,2464.4,2464.3,0.40585]
[1728822954782,0.4065,2464.4,2464.3,0.40585]
[1728822955488,0.3878,2464.5,2464.4,0.40583]
[1728822955796,3.6169,2464.6,2464.5,0.40582]
[1728822956484,0.4091,2464.6,2464.5,0.40582]
[1728822957795,0.8149,2464.6,2464.5,0.40582]
[1728822958387,4.8725,2464.6,2464.5,0.40582]
[1728822958693,0.40583,2464.5,2464.4,0.40583]
[1728822958885,0.4207,2464.8,2464.7,0.40578]
[1728822960699,0.82647,2464.8,2464.7,0.40578]
[1728822961693,0.4207,2464.8,2464.7,0.40578]
[1728822962395,1.48330162,2464.8,2464.7,0.40578]
[1728822964395,1.88908162,2464.8,2464.5,0.3906]
[1728822964591,1.88908162,2464.8,2464.7,0.40578]
[1728822965096,5.94667162,2464.8,2464.7,0.40578]
[1728822966186,0.4058,2464.6,2464.5,0.79641]
[1728822966384,0.4058,2464.6,2464.5,0.3906]
[1728822966792,0.7953,2464.6,2464.5,0.3906]
[1728822967596,0.3895,2464.6,2464.5,0.79642]
[1728822967794,0.7953,2464.6,2464.5,0.79642]
[1728822968393,1.06260162,2464.7,2464.6,0.4058]
[1728822968592,3.05975686,2464.9,2464.5,2.46280762]
[1728822968890,1.06260162,2464.9,2464.8,0.40577]
[1728822969700,1.06260162,2465.0,2464.9,0.40575]
[1728822969896,1.06260162,2465.1,2465.0,0.40574]
[1728822970496,1.06260162,2465.2,2465.1,0.40572]
[1728822971001,1.46410162,2465.3,2464.8,3.26895762]
[1728822971186,1.46410162,2465.3,2465.2,0.4057]
[1728822972891,1.46410162,2465.3,2464.8,2.25455762]
[1728822973292,1.86980162,2465.3,2464.9,0.40575]
[1728822973497,1.46831162,2465.2,2464.9,0.40575]
[1728822973694,1.86980162,2465.3,2464.9,0.40574]
[1728822973998,0.40571,2465.2,2464.9,0.40574]
[1728822976108,0.4057,2465.2,2464.9,0.40574]
[1728822976691,0.40572,2465.1,2464.9,0.40574]
[1728822977105,0.40574,2465.0,2464.8,1.1969]
[1728822977398,0.3911,2465.0,2464.8,0.4064]
[1728822977597,0.40575,2464.9,2464.8,0.4064]
[1728822977794,0.81855,2464.9,2464.8,0.4064]
[1728822978998,0.40575,2464.9,2464.8,0.4064]
[1728822986005,0.81325,2464.9,2464.8,0.4064]
[1728822988707,0.4075,2464.9,2464.8,0.4064]
[1728822988911,0.81325,2464.9,2464.8,0.4064]
[1728822989813,0.79684,2465.0,2464.8,1.23466]
[1728822990313,0.40575,2464.9,2464.8,0.8289]
[1728822990512,0.40574,2465.0,2464.8,1.23466]
[1728822990914,5.49311162,2465.2,2465.0,0.40573]
[1728822991108,3.2078,2465.2,2465.1,0.4186]
[1728822991410,1.46828162,2465.4,2465.2,0.4057]
[1728822991715,0.78688,2465.4,2465.2,0.4057]
[1728822992010,0.3812,2465.4,2465.1,0.4186]
[1728822992314,0.40569,2465.3,2465.1,0.82431]
[1728822993615,0.40569,2465.3,2465.2,0.4057]
[1728822993812,1.84948162,2465.4,2465.1,0.4186]
[1728822994109,9.77135524,2465.5,2465.3,0.40569]
[1728822994110,1.85996162,2465.5,2465.3,0.40569]
[1728822994313,0.79736,2465.5,2465.4,0.4043]
[1728822995018,0.79736,2465.5,2465.4,0.80997]
[1728822995619,0.3917,2465.5,2465.4,0.80997]
[1728822996219,1.88024162,2465.6,2465.5,0.40565]
[1728822997019,1.47460162,2465.6,2465.5,0.40565]
[1728822997315,1.88024162,2465.6,2465.5,0.40565]
[1728822999014,1.47460162,2465.6,2465.5,0.40565]
[1728822999216,1.88024162,2465.6,2465.5,0.40565]
[1728822999509,0.81764,2465.6,2465.5,0.40565]
[1728823001122,1.88024162,2465.6,2465.5,0.40565]
[1728823004316,0.40565,2465.5,2465.4,0.80996]
[1728823004522,2.07674162,2465.5,2465.2,0.902]
[1728823004817,1.46827162,2465.5,2465.4,0.40567]
[1728823005229,0.40567,2465.5,2465.4,0.40567]
[1728823005522,1.47460162,2465.6,2465.3,0.40567]
[1728823005523,0.40568,2465.4,2465.3,0.40567]
[1728823006523,1.06260162,2465.5,2465.2,0.4035]
[1728823006723,1.18979,2465.3,2465.2,0.80919]
[1728823006915,0.7841,2465.3,2464.9,1.05765762]
[1728823007115,0.40574,2465.0,2464.9,0.4228]
[1728823007828,0.40575,2464.9,2464.7,2.36843762]
[1728823008127,0.7936,2464.9,2464.8,0.40577]
[1728823008922,0.7936,2464.9,2464.7,2.38545762]
[1728823009122,0.40577,2464.8,2464.7,1.48045762]
[1728823009629,0.79457,2464.8,2464.7,1.48045762]
[1728823009924,0.79457,2464.8,2464.7,0.4228]
[1728823010618,0.3888,2464.8,2464.7,0.4228]
[1728823010818,0.79457,2464.8,2464.7,1.48045762]
[1728823011020,0.79457,2464.8,2464.7,0.4228]
[1728823011427,0.3888,2464.8,2464.7,0.4228]
[1728823011630,0.7936,2464.9,2464.7,0.4228]
[1728823011631,1.19936,2464.9,2464.7,1.88623762]
[1728823012125,0.7936,2464.9,2464.7,1.48045762]
[1728823012326,1.19937,2464.9,2464.7,1.88623762]
[1728823012521,1.19937,2464.9,2464.7,1.48045762]
[1728823013022,0.40577,2464.8,2464.7,1.48045762]
[1728823013328,1.19936,2464.9,2464.7,1.88623762]
[1728823014126,1.19936,2464.9,2464.7,1.48045762]
[1728823014425,0.7936,2464.9,2464.8,1.05765762]
[1728823014630,1.19935,2464.9,2464.8,1.05765762]
[1728823017828,0.40577,2464.8,2464.7,1.48045762]
[1728823018019,0.40577,2464.8,2464.7,2.58009372]
[1728823018425,0.7936,2464.9,2464.7,2.58009372]
[1728823018626,1.19936,2464.9,2464.7,1.88623762]
[1728823019230,1.19936,2464.9,2464.7,1.48045762]
[1728823019528,1.19936,2464.9,2464.7,1.88623762]
[1728823020233,0.7936,2464.9,2464.8,0.40577]
[1728823021836,1.19936,2464.9,2464.7,2.27292762]
[1728823023937,1.19936,2464.9,2464.8,0.40577]
[1728823024239,0.7936,2464.9,2464.8,1.46342762]
[1728823024449,0.3917,2464.9,2464.8,1.46342762]
[1728823027239,0.79745,2464.9,2464.8,1.46342762]
[1728823028035,0.40577,2464.8,2464.7,1.88623762]
[1728823028245,0.81597,2464.8,2464.7,1.88623762]
[1728823028431,0.81597,2464.8,2464.7,1.48045762]
[1728823028628,0.81597,2464.8,2464.7,1.88623762]
[1728823028932,0.81597,2464.8,2464.7,1.05765762]
[1728823029133,0.4102,2464.8,2464.6,4.26545762]
[1728823029341,0.40578,2464.7,2464.6,4.26545762]
[1728823032234,0.40582,2464.5,2464.4,1.05765762]
[1728823032541,2.47512469,2464.6,2464.2,1.05765762]
[1728823032732,0.40585,2464.3,2464.2,1.05765762]
[1728823034640,0.40585,2464.3,2464.1,2.77723762]
[1728823035032,0.40585,2464.3,2464.1,2.37135762]
[1728823035435,0.40587,2464.2,2464.1,1.46635762]
[1728823035636,0.81737,2464.2,2464.1,0.4087]
[1728823035938,0.4115,2464.2,2464.1,0.4087]
[1728823036235,0.4115,2464.2,2464.1,0.81458]
[1728823036438,0.82734,2464.4,2464.1,1.99913421]
[1728823036635,1.23884,2464.4,2464.1,0.81458]
[1728823036833,0.833,2464.4,2464.2,0.40587]
[1728823037029,0.833,2464.4,2464.1,0.4087]
[1728823037233,0.4143,2464.5,2464.2,0.3895]
[1728823037635,0.4143,2464.5,2464.4,0.40583]
[1728823039044,0.7756,2464.6,2464.5,0.40582]
[1728823039544,0.7756,2464.6,2464.4,0.40582]
[1728823039755,0.7756,2464.6,2464.5,0.40582]
[1728823042740,0.7756,2464.6,2464.3,0.4026]
[1728823042950,0.40583,2464.5,2464.3,0.40585]
[1728823043551,0.40583,2464.5,2464.2,0.40585]
[1728823043746,0.40584,2464.4,2464.2,1.30385]
[1728823043950,0.4085,2464.3,2464.2,1.30385]
[1728823047547,0.4085,2464.3,2464.2,2.36150762]
[1728823048145,0.4085,2464.3,2464.2,1.30385]
[1728823048447,0.4085,2464.3,2464.2,2.36150762]
[1728823050840,0.4085,2464.3,2464.2,3.44890077]
[1728823051048,0.4085,2464.3,2464.2,3.4488868]
[1728823051338,0.4085,2464.3,2464.2,2.55217666]
[1728823051541,0.4085,2464.3,2464.2,3.44906875]
[1728823052448,0.4085,2464.3,2464.2,3.76662975]
[1728823052744,0.4085,2464.3,2464.2,4.29528736]
[1728823053347,0.4085,2464.3,2464.2,3.76302468]
[1728823053747,0.4085,2464.3,2464.2,4.29026999]
[1728823054052,0.4085,2464.3,2464.2,2.70395476]
[1728823054444,0.4085,2464.3,2464.2,4.29026999]
[1728823054743,0.4085,2464.3,2464.2,2.70395476]
[1728823055151,0.4085,2464.3,2464.2,4.29026999]
[1728823055351,0.4085,2464.3,2464.2,2.70395476]
[1728823055646,0.4085,2464.3,2464.2,2.7039459]
[1728823056150,0.4085,2464.3,2464.2,3.76296604]
[1728823056653,0.4085,2464.3,2464.2,3.76296704]
[1728823056854,0.7994,2464.3,2464.2,3.76296704]
[1728823057550,0.7994,2464.3,2464.2,3.0395639]
[1728823057742,0.7994,2464.3,2464.2,2.36289014]
[1728823058251,0.7994,2464.3,2464.2,1.46489014]
[1728823058446,0.7994,2464.3,2464.2,1.05902014]
[1728823058652,1.20525,2464.3,2464.2,1.05902014]
[1728823061146,0.7994,2464.3,2464.1,4.26682014]
[1728823061354,5.54210469,2464.2,2463.9,0.898]
[1728823061550,0.40588,2464.1,2463.9,1.30391]
[1728823061853,0.40588,2464.1,2463.9,0.40591]
[1728823062046,0.3956,2464.0,2463.9,0.40591]
[1728823062848,1.48370469,2464.2,2463.9,0.52244221]
[1728823063153,1.87930469,2464.2,2464.0,0.40589]
[1728823063355,2.28517469,2464.2,2464.0,0.40589]
[1728823063754,1.87930469,2464.2,2463.9,1.48152014]
[1728823064051,1.87930469,2464.2,2464.1,0.40588]
[1728823064456,0.8162,2464.2,2464.1,0.40588]
[1728823066449,1.22207,2464.2,2464.1,0.40588]
[1728823067158,1.06310469,2464.3,2464.1,3.2078]
[1728823067458,0.3834,2464.4,2464.3,0.40585]
[1728823070061,0.3834,2464.4,2464.2,1.45552014]
[1728823070254,1.85235469,2464.4,2464.2,0.80236]
[1728823072654,1.85235469,2464.4,2464.2,1.86138014]
[1728823072850,1.44650469,2464.4,2464.2,1.45552014]
[1728823073054,1.44650469,2464.4,2464.3,0.40585]
[1728823075665,0.40585,2464.3,2464.2,1.05902014]
[1728823075854,0.40587,2464.2,2464.1,4.26682014]
[1728823076058,2.23422869,2464.2,2464.1,4.26682014]
[1728823076256,2.23422869,2464.2,2464.1,4.45779961]
[1728823076457,2.23422869,2464.2,2464.1,4.26682014]
[1728823077069,2.76512524,2464.2,2464.1,3.2078]
[1728823077372,2.96817235,2464.2,2464.1,3.2078]
[1728823077759,2.96817235,2464.2,2463.9,2.89864936]
[1728823077760,0.40588,2464.1,2463.9,2.89864936]
[1728823077961,1.0641682,2464.0,2463.9,2.89864936]
[1728823078264,1.4700682,2464.0,2463.9,3.35956721]
[1728823078564,1.4700682,2464.0,2463.9,1.05902014]
[1728823079661,1.4700682,2464.0,2463.8,5.07845014]
[1728823079860,1.4700682,2464.0,2463.8,4.67252014]
[1728823080361,1.4700682,2464.0,2463.8,5.07845014]
[1728823080664,1.4700682,2464.0,2463.9,1.05902014]
[1728823080862,1.4700682,2464.0,2463.8,5.07845014]
[1728823081771,1.0641682,2464.0,2463.8,5.19993623]
[1728823081962,0.40592,2463.9,2463.8,5.19993623]
[1728823082271,0.40592,2463.9,2463.8,0.4057]
[1728823082461,1.4700882,2463.9,2463.8,0.4057]
[1728823082662,1.0641682,2463.9,2463.7,1.05902014]
[1728823082969,1.59373,2463.8,2463.7,1.05902014]
[1728823083466,1.1878,2463.8,2463.7,1.46497014]
[1728823083665,0.7879,2463.8,2463.7,1.46497014]
[1728823083865,0.3845,2463.8,2463.7,1.46497014]
[1728823084169,1.4779682,2464.0,2463.9,0.40592]
[1728823084763,0.4138,2464.0,2463.9,0.82812]
[1728823085760,2.2579582,2464.1,2463.9,0.82812]
[1728823086970,1.8520682,2464.1,2463.9,0.82812]
[1728823087161,0.7879,2464.1,2464.0,0.4059]
[1728823090072,1.0641682,2464.2,2463.9,1.8909391]
[1728823090368,1.0641682,2464.2,2464.1,0.40588]
[1728823095480,1.0641682,2464.2,2464.0,1.0602391]
[1728823095481,1.4700382,2464.2,2464.0,0.40589]
[1728823095774,0.3956,2464.1,2464.0,1.4661291]
[1728823096672,0.3956,2464.1,2464.0,0.40589]
[1728823097273,0.3956,2464.1,2464.0,1.4661291]
[1728823099165,1.0641682,2464.2,2464.1,0.40588]
[1728823099871,1.0641682,2464.4,2464.1,13.04166731]
[1728823100172,1.0641682,2464.5,2464.3,1.06045019]
[1728823100374,1.0641682,2464.5,2464.4,0.78903]
[1728823100769,1.0641682,2464.5,2464.4,1.84948019]
[1728823100971,1.0641682,2464.5,2464.4,1.97636551]
[1728823101371,1.4789682,2464.6,2464.4,1.97636564]
[1728823101573,1.4789682,2464.6,2464.4,1.84948019]
[1728823102274,1.4789682,2464.6,2464.4,1.44365019]
[1728823102480,1.4699882,2464.5,2464.4,0.3832]
[1728823103376,0.40583,2464.4,2464.3,1.06045019]
[1728823103585,2.2962982,2464.4,2464.3,1.18733997]
[1728823104078,2.2962982,2464.4,2464.3,0.12688978]
[1728823105080,2.2962982,2464.4,2464.2,5.57212019]
[1728823105283,0.3909,2464.3,2464.2,5.57212019]
[1728823105471,0.79675,2464.3,2464.2,6.55559361]
[1728823105779,0.79675,2464.3,2464.2,5.29314366]
[1728823106178,0.79675,2464.3,2464.2,4.39514366]
[1728823106373,1.8609182,2464.3,2464.2,4.39514366]
[1728823106984,1.8609182,2464.3,2464.2,3.33469347]
[1728823107172,1.8609182,2464.3,2464.2,3.2078]
[1728823111178,2.39300231,2464.3,2464.2,3.2078]
[1728823111578,2.59604555,2464.3,2464.2,3.2078]
[1728823111775,6.65444555,2464.3,2464.2,3.2078]
[1728823112085,6.65389253,2464.3,2464.2,3.2078]
[1728823112274,4.65234324,2464.3,2464.0,1.06045019]
[1728823112476,1.46969843,2464.1,2463.9,2.36436019]
[1728823112677,0.834,2464.0,2463.9,2.36436019]
[1728823112877,0.834,2464.0,2463.9,3.62234342]
[1728823112878,1.2407,2464.0,2463.9,3.62234342]
[1728823113074,1.2407,2464.0,2463.9,1.25146559]
[1728823113385,1.2407,2464.0,2463.8,1.06045019]
[1728823113386,0.40592,2463.9,2463.8,1.06045019]
[1728823113575,1.46990985,2463.9,2463.8,1.06045019]
[1728823113777,0.40593,2463.8,2463.7,1.06045019]
[1728823115687,0.40593,2463.8,2463.7,0.40595]
[1728823115688,1.46991985,2463.8,2463.7,0.40595]
[1728823117480,1.06398985,2463.8,2463.7,0.40595]
[1728823117680,1.06398985,2463.8,2463.7,0.81575]
[1728823117994,1.46990985,2463.9,2463.8,0.40593]
[1728823118379,1.06398985,2463.9,2463.7,0.4098]
[1728823118688,1.89798985,2464.0,2463.7,1.47025019]
[1728823118890,1.89798985,2464.0,2463.9,0.40592]
[1728823119886,1.06398985,2464.0,2463.9,0.40592]